Cogmind - Beta 14 *** ADVENTURER MODE // 2024.08.23 @ 01:27:03 Player: Ms. V3-11A Result: Destroyed by 5T-MR2(R) with Subdweller Beam Cannon Performance ------------- Evolutions (0) 0 Regions Visited (3) 600 Robots Destroyed (22) 110 Value Destroyed (588) 588 Prototype IDs (13) 260 Alien Tech Used (0) 0 Bonus (90) 90 TOTAL SCORE: 1648 Bonus ------- Follower Combat Kills 155 Friendly Fire -65 Cogmind --------- Core Integrity 0/250 Matter 279/300 Energy 51/100 System Corruption 1% Temperature Cool (11) Movement Treading (240) Ox1 Location -10/Subcaves Parts ------- > --- POWER (1) -------- (None) > --- PROPULSION (2) --- Light Treads Light Treads > --- UTILITY (2) ------ High-capacity Storage Unit Structural Scanner > --- WEAPON (2) ------- Subdweller Laser Assault Rifle > --- INVENTORY (20) --- Subdweller Power Source Light Nuclear Core Light Treads Light Treads Light Treads Light Treads High-capacity Storage Unit High-capacity Battery (250) Machine Analyzer Subdweller Optics Seismic Detector Targeting Computer Utility Shielding Rainbow Chip EM Pulse Gun EM Pulse Gun EM Pulse Gun Assault Rifle Mining Claw Peak State ------------ > --- POWER ------------ Light Ion Engine > --- PROPULSION ------- Light Treads Light Treads > --- UTILITY ---------- High-capacity Storage Unit Structural Scanner > --- WEAPON ----------- Subdweller Laser Subdweller Laser > --- INVENTORY -------- Subdweller Power Source Light Nuclear Core Light Treads Light Treads Light Treads Light Treads High-capacity Storage Unit High-capacity Battery Machine Analyzer Subdweller Optics Seismic Detector Targeting Computer Utility Shielding Rainbow Chip EM Pulse Gun EM Pulse Gun EM Pulse Gun Assault Rifle Assault Rifle Mining Claw [Rating: 12] Favorites ----------- Power Ion Engine Engine Ion Engine Propulsion Aluminum Leg Treads Light Treads Leg Aluminum Leg Utility High-capacity Storage Unit Device Structural Scanner Storage High-capacity Storage Unit Weapon Assault Rifle Energy Gun Subdweller Laser Energy Cannon Beam Cannon Ballistic Gun Assault Rifle Slashing Weapon Mining Claw Build | -11 -10 -10 -10 ------- Run | Yrd Mat Min Sub Slots Evolved . | . . . . Power . | . . . . Propulsion . | . . . . Utility . | . . . . Weapon . | . . . . Parts Attached 18 | . 8 2 8 Power 1 | . . 1 . Engine 1 | . . 1 . Core . | . . . . Reactor . | . . . . Propulsion 5 | . 3 . 2 Treads 2 | . . . 2 Leg 3 | . 3 . . Wheel . | . . . . Hover . | . . . . Flight . | . . . . Utility 3 | . 3 . . Device 1 | . 1 . . Storage 2 | . 2 . . Processor . | . . . . Hackware . | . . . . Protection . | . . . . Artifact . | . . . . Weapon 9 | . 2 1 6 Energy Gun 2 | . . . 2 Energy Cannon 1 | . . 1 . Ballistic Gun 4 | . 2 . 2 Ballistic Cannon . | . . . . Launcher . | . . . . Special Weapon . | . . . . Impact Weapon . | . . . . Slashing Weapon 2 | . . . 2 Piercing Weapon . | . . . . Special Melee Weapon . | . . . . Unidentified Prototypes . | . . . . Parts Lost 4 | . . 2 2 Power 2 | . . 1 1 Propulsion . | . . . . Utility . | . . . . Weapon 2 | . . 1 1 Highest Loss Streak 2 | . . 1 2 To Critical Strikes . | . . . . Average Slot Usage (%) 96 | . 94 99 99 Engine 13 | . 14 14 13 Treads 8 | . . . 27 Leg 19 | . 28 28 . Device 11 | . 8 14 14 Storage 14 | . 14 14 14 Energy Gun 3 | . 1 . 9 Energy Cannon 1 | . . 3 4 Ballistic Gun 19 | . 26 24 4 Slashing Weapon 2 | . . . 9 Peak Build Rating 12 | 6 9 9 12 Average Rating 9 | 6 8 8 10 On Entrance 7 | 6 6 9 9 Naked Turns . | . . . . Heaviest Build 69 | 13 69 51 52 Greatest Support 40 | 20 20 20 40 Greatest Overweight (x) 3 | . 3 2 2 Average Overweight (x) 1 | . 1 2 1 Largest Inventory Capacity 20 | 8 20 20 20 Average Capacity 19 | 8 18 20 20 Most Carried 20 | 5 20 20 20 Average Carried 18 | 5 17 19 19 Final Capacity 20 | 8 20 20 20 Final Carried 20 | 4 20 18 19 Class Distribution -------------------- 100% | Mutant Dominant Class ---------------- Mutant | -10/Materials Mutant | -10/Mines Mutant | -10/Subcaves Resources | -11 -10 -10 -10 ----------- Run | Yrd Mat Min Sub Matter Collected 782 | 200 312 153 117 Remotely . | . . . . Salvage Created 872 | . 571 188 113 Parts 45 | . 34 8 3 Haulers Intercepted 2 | . 2 . . Recyclers Shooed 3 | . 3 . . Parts Field Recycled . | . . . . Retrieved Matter . | . . . . Parts Self-Destructed 8 | . . . 8 Prevented . | . . . . Kills | -11 -10 -10 -10 ------- Run | Yrd Mat Min Sub Combat Hostiles Destroyed 16 | . 11 4 1 Guns 13 | . 11 1 1 Cannons 2 | . . 2 . Classes Destroyed 9 | . 6 . 3 Worker 2 | . 2 . . Hauler 2 | . 2 . . Mechanic 1 | . 1 . . Watcher 1 | . 1 . . Swarmer 3 | . 3 . . Grunt 12 | . 8 4 . Artisan 1 | . . . 1 Cobbler 1 | . . . 1 Subdweller 1 | . . . 1 Best Kill Streak 4 | . 4 3 1 Combat Bots Only 3 | . 3 3 1 Max Kills in Single Turn 1 | . 1 1 1 Gunslinging . | . . . . Exploded . | . . . . Melee . | . . . . Uniques/NPCs Destroyed . | . . . . Combat | -11 -10 -10 -10 -------- Run | Yrd Mat Min Sub Hostile Shots Fired 129 | . 76 32 21 Missed 28 | . 18 5 5 Damage Taken 1127 | . 573 274 280 Core 254 | . 95 60 99 Absorbed by Shields . | . . . . Ignored by Resistances 330 | . 175 79 76 Core Remaining (%) 100 | 100 . . . Volleys Fired 96 | . 55 16 25 Largest 2 | . 2 2 2 Hottest 120 | . 60 80 120 Shots Fired 172 | . 108 28 36 Gun 155 | . 108 16 31 Cannon 17 | . . 12 5 Launcher . | . . . . Special . | . . . . Kinetic 116 | . 94 16 6 Thermal 56 | . 14 12 30 Explosive . | . . . . Electromagnetic . | . . . . Robot Hit Streak 19 | . 19 11 13 Robot Miss Streak 3 | . 3 1 1 Penetration Max . | . . . . Secondary Targets 1 | . 1 . . Max Gunslinging Chain 1 | . 1 . . Shots Hit Robots 134 | . 80 24 30 Core Hits 48 | . 31 8 9 Critical Kills . | . . . . Critical Parts Destroyed . | . . . . Critical Strikes . | . . . . Melee Attacks 16 | . . . 16 Impact . | . . . . Slashing 16 | . . . 16 Piercing . | . . . . Sneak Attacks . | . . . . Combat Hostiles . | . . . . Follow-up Attacks . | . . . . Damage Inflicted 1960 | . 1043 345 572 Guns 1715 | . 1029 167 519 Cannons 231 | . . 178 53 Explosions . | . . . . Melee . | . . . . Ramming 14 | . 14 . . Kinetic 1102 | . 881 167 54 Thermal 844 | . 148 178 518 Explosive . | . . . . Electromagnetic . | . . . . Impact . | . . . . Slashing . | . . . . Piercing . | . . . . Highest Corruption 1 | . 1 1 1 Average Corruption 1 | . 1 1 1 Corruption Purged . | . . . . Corruption Blocked . | . . . . Effects 29 | . 9 3 17 Message Errors 4 | . 1 . 3 Matter Fused 11 | . 3 2 6 Heat Flow Errors 5 | . 1 . 4 Energy Discharges 3 | . 2 1 . Data Loss (minor) 2 | . 1 . 1 Data Loss (major) 1 | . . . 1 Misfires 2 | . 1 . 1 Alerts 1 | . . . 1 Overload Shots . | . . . . Overflow Damage . | . . . . Projectiles . | . . . . Explosions . | . . . . Melee . | . . . . Knockbacks . | . . . . Impact . | . . . . Kinetic . | . . . . Secondary . | . . . . Self-Inflicted Damage . | . . . . Shots . | . . . . Rammed . | . . . . Targets Rammed 1 | . 1 . . Kicked 1 | . 1 . . Crushed . | . . . . Highest Temperature 247 | . 126 144 247 Average Temperature 53 | . 36 54 84 Received Heat Transfer 723 | . 375 255 93 Siege Activations . | . . . . Robots Corrupted . | . . . . Combat Hostiles . | . . . . Parts Fried . | . . . . Impact Corruptions . | . . . . Robots Melted 1 | . . 1 . Combat Hostiles 1 | . . 1 . Parts Melted 4 | . 2 1 1 Heat Transferred 1381 | . 325 370 686 Parts Sabotaged . | . . . . Parts Stolen . | . . . . Parts Stripped . | . . . . Power Chain Reactions . | . . . . Alert | -11 -10 -10 -10 ------- Run | Yrd Mat Min Sub Peak Influence 169 | . 169 140 . Initial . | . . . . Average 21 | . 22 19 . Maximum Alert Level . | . . . . Low Security (%) 100 | 100 100 100 . Level 1 . | . . . . Level 2 . | . . . . Level 3 . | . . . . Level 4 . | . . . . Level 5 . | . . . . High Security . | . . . . Max Security . | . . . . Squads Dispatched . | . . . . Investigation . | . . . . Extermination . | . . . . Reinforcement . | . . . . Assault . | . . . . Garrison . | . . . . Intercept . | . . . . Searches Triggered . | . . . . Construction Impeded . | . . . . Haulers Reinforced . | . . . . Active Scanning Responses . | . . . . Cargo Convoy Interrupts . | . . . . Stealth | -11 -10 -10 -10 --------- Run | Yrd Mat Min Sub Distress Signals 1 | . 1 . . Communications Jammed . | . . . . Distress Signals . | . . . . Times Spotted 49 | . 36 6 7 Peak Tracking Total 4 | . 4 3 3 Tactical Retreats 2 | . 1 1 . Traps | -11 -10 -10 -10 ------- Run | Yrd Mat Min Sub Traps Triggered 3 | . 3 . . Indirectly . | . . . . Trap Hack Attempts . | . . . . Triggered . | . . . . Disarmed . | . . . . Reprogrammed . | . . . . Reused . | . . . . Traps Extracted . | . . . . Installed . | . . . . Triggered 1 | . . . 1 Machines | -11 -10 -10 -10 ---------- Run | Yrd Mat Min Sub Machines Disabled 2 | . . 1 1 Max in Single Turn 1 | . . 1 1 Machines Repaired . | . . . . Machines Dismantled . | . . . . Machines Sabotaged . | . . . . Overloaded Fab Kills . | . . . . Hacking | -11 -10 -10 -10 --------- Run | Yrd Mat Min Sub Machines Accessed 9 | . 8 . 1 Terminals 8 | . 8 . . Fabricators . | . . . . Repair Stations . | . . . . Recycling Units . | . . . . Scanalyzers . | . . . . Garrison Access . | . . . . Total Hacks 35 | . 31 . 4 Successful 28 | . 24 . 4 Failed 7 | . 7 . . Catastrophic . | . . . . Database Lockouts . | . . . . Manual 21 | . 21 . . Terminals 31 | . 31 . . Fabricators . | . . . . Repair Stations . | . . . . Recycling Units . | . . . . Scanalyzers . | . . . . Garrison Access . | . . . . Terminal Hacks 17 | . 13 . 4 Record 3 | . . . 3 Robot Schematic 1 | . 1 . . Robot Analysis 6 | . 6 . . Prototype ID Bank 1 | . 1 . . Unreport Threat 1 | . 1 . . Locate Traps 1 | . 1 . . Patrol Status 1 | . 1 . . Hauler Manifests 1 | . 1 . . Registered Components 1 | . 1 . . Derelict Proto ID Bank 1 | . . . 1 Fabricator Hacks . | . . . . Repair Station Hacks . | . . . . Recycling Unit Hacks . | . . . . Scanalyzer . | . . . . Garrison Access Hacks . | . . . . Unauthorized Hacks 11 | . 11 . . Terminals 11 | . 11 . . Botnet 3 | . 3 . . Skim 8 | . 8 . . Fabricators . | . . . . Repair Stations . | . . . . Recycling Units . | . . . . Scanalyzers . | . . . . Garrison Access . | . . . . Data Cores Recovered . | . . . . Used . | . . . . Hacking Detections 6 | . 6 . . Full Trace Events . | . . . . Feedback Events . | . . . . Feedback Blocked . | . . . . Robot Schematics Acquired 1 | . 1 . . Robots Built . | . . . . Authchips . | . . . . Time . | . . . . Total Robot Build Rating . | . . . . Part Schematics Acquired . | . . . . Parts Built . | . . . . Authchips . | . . . . Time . | . . . . Total Part Build Rating . | . . . . Parts Repaired . | . . . . Time . | . . . . Parts Recycled . | . . . . Recycled Matter . | . . . . Retrieved Matter . | . . . . Retrieved Components . | . . . . Parts Scanalyzed . | . . . . Part Schematics Acquired . | . . . . Parts Damaged . | . . . . Bothacking | -11 -10 -10 -10 ------------ Run | Yrd Mat Min Sub Used RIF Installer . | . . . . Robots Hacked . | . . . . Non-combat . | . . . . Combat . | . . . . Robot Hacks Applied . | . . . . Relay Couplers Released . | . . . . Fabnet Peak Effective % . | . . . . Robots Rewired . | . . . . Allies Hacked . | . . . . Hacks Repelled . | . . . . Allies | -11 -10 -10 -10 -------- Run | Yrd Mat Min Sub Total Allies 2 | . . 2 . Largest Group 2 | . . 2 1 Highest-Rated Group 49 | . . 49 31 Highest-Rated Ally 31 | . . 31 31 Total Orders . | . . . . Ally Attacks 31 | . . 18 13 Total Damage 375 | . . 145 230 Kills 5 | . . 1 4 Allies Corrupted . | . . . . Allies Melted . | . . . . Intel | -11 -10 -10 -10 ------- Run | Yrd Mat Min Sub Robot Analysis Total 6 | . 6 . . Derelict Logs Recovered 2 | . . 2 . Drone Launches . | . . . . Drone Recoveries . | . . . . Exploration | -11 -10 -10 -10 ------------- Run | Yrd Mat Min Sub Turns Passed 6559 | 1 3695 762 2101 Spaces Moved 2496 | 1 1403 270 822 Core . | . . . . Treads 803 | . . . 803 Legs 1693 | 1 1403 270 19 Wheels . | . . . . Hover . | . . . . Flight . | . . . . Fastest Speed 120 | 120 120 260 240 Average Speed 236 | 120 230 260 240 Slowest Speed 330 | 120 330 260 260 Overloaded Moves . | . . . . Propulsion Burnouts . | . . . . Robots Hopped . | . . . . Cave-ins Triggered . | . . . . Exploration Rate (%) 50 | 2 99 64 38 Regions Visited 3 Branch Regions 2 Pre-discovered Areas . | . . . . Known Exits Taken 1 | . 1 . . Unknown Exits Taken 2 | 1 . 1 . Scrap Searched 1 | . . 1 . Spaces Dug . | . . . . Terrain Destroyed . | . . . . Melee . | . . . . Projectile . | . . . . AOE . | . . . . Terrain Rammed . | . . . . Walls Destroyed . | . . . . Machines Disabled . | . . . . Actions | -11 -10 -10 -10 --------- Run | Yrd Mat Min Sub Total 2947 | 2 1760 303 882 Wait 281 | . 265 16 . Move 2493 | . 1402 269 822 Hop . | . . . . Pick Up 25 | . 19 . 6 Fast Attach 6 | . 5 . 1 Attach 6 | . . 2 4 Detach . | . . . . Swap 6 | . 3 . 3 Drop 17 | 2 10 . 5 Fire 96 | . 55 16 25 Melee 16 | . . . 16 Ram . | . . . . Kick 1 | . 1 . . Crush . | . . . . Escape Stasis . | . . . . Rewire . | . . . . Trap . | . . . . Miscellaneous . | . . . . Route ------- -11/Scrapyard -10/Materials (discovered 5 exits: *Mat x3 / *Min x2) -10/Mines (discovered 2 exits: *Mat / *Sub) -10/Subcaves (discovered 2 exits: [*Mat x2]) History --------- Turn | Location | Event 2 | -11/Scrapyard | Discovered new exit (range 0) 2 | -11/Scrapyard | Entered Materials 58 | -10/Materials | Discovered new exit (range 15) 217 | -10/Materials | Discovered new exit (range 9) 258 | -10/Materials | Identified exit to Mines 295 | -10/Materials | Identified exit to Materials 313 | -10/Materials | Build established: Mutant 323 | -10/Materials | Learned Storage security intel 343 | -10/Materials | Learned 2 Storage zone layouts 3697 | -10/Materials | Entered Mines 3708 | -10/Mines | Met a Derelict bent on vengeance 4002 | -10/Mines | Discovered exit to Materials (range 14) 4147 | -10/Mines | Learned Materials garrison access intel 4292 | -10/Mines | Core integrity fell below 50% 4385 | -10/Mines | Learned Materials interactive machine intel 4408 | -10/Mines | Discovered new exit (range 15) 4459 | -10/Mines | Entered Subcaves 4459 | -10/Subcaves | Accompanied by 1 ally 4464 | -10/Subcaves | Led the pair of lost Derelicts to an unsafe place 4504 | -10/Subcaves | Discovered new exit (range 9) 4599 | -10/Subcaves | Visited 4L-MR0's lab 5127 | -10/Subcaves | Found Prototype Processor 5159 | -10/Subcaves | Identified Rainbow Chip 5389 | -10/Subcaves | Discovered new exit (range 15) 5775 | -10/Subcaves | Shifting Twisted Machinery released Sub. Beam Cannon 5790 | -10/Subcaves | Shifting Twisted Machinery released Mak. Flight Unit 6552 | -10/Subcaves | Ambushed by angry Subdweller bent on revenge 6552 | -10/Subcaves | Core integrity fell below 20% 6560 | -10/Subcaves | Destroyed by 5T-MR2(R) with Subdweller Beam Cannon Last Messages --------------- Sub. Beam Cannon falls loose from the Twisted Machinery. 05783_ System corrupted: Matter fused (-8). Mak. Flight Unit falls loose from the Twisted Machinery. 05883_ System corrupted: Heat flow error (+209). 05984_ Subatomizers dissect the Sub. Power Source. 06279_ 7EACE/YOWUBYGSOZA%4E5LFQG 06438_ Destroyed Wheel. 06499_ G1-XUJ(u) tweaks Twisted Machinery. 06542_ Destroyed Wheel. 06542_ GT-O4P(O) cries out in pain. 06542_ GT-O4P(O) destroyed. 06547_ Subatomizers dissect the Cobbler Unit. 06547_ 9Y-UIW(g) destroyed. 06552_ L3-HT7(R) angrily emerges from the Twisted Machinery. 06552_ L3-HT7(R): "ECOKILL!" 06554_ Sub. Laser destroyed. 06558_ Subatomizers dissect the Cobbler Unit. 06558_ Lgt. Ion Engine destroyed. 06560_ Sub. Power Source melted. 06560_ JD-3QI(R) destroyed. Map ----- +----------------------------------------------------+ | ?????????????????????????????????????????## | | ?????????????????????????????????????????## # | | ?????????????????????????????????????????### # | | ???????????????????????????????????????##### | | ???????????????????????????????????????#### | | ???????????????????????????????????????## ##### | | ???????????????????????????????????????### ###### | | ???????????????????????????????????????### ###??? | | ????????????????????????????????????????## ###???? | | ????????????????????????????????????????######???? | | ????????????????????????????????????????#####????? | | ?????????????????????????????????????????????????? | | ?????????????????????????????????????????????????? | | ?????????????????????????????????????????????????? | | ?????????????????????????????????????????????????? | | ?????????????????????????????????????????????????? | | ?????????????????????????????????????????????????? | | ?????????????????????????????????????????????????? | | ?????????????? ?????????????????????????????????? | | ??????????????? ????????????????????????????????? | | ???????????????? ??????????????????????????????? | | ????????????????## ?????????????????????????????? | | ????????????????### ?????????????????????????????? | | ???????????????#### #######????????????????????? | | ?????????? ### ###########????????????????? | | ?????????? * !%[ @"##### ??############### | | ?????????? =%[ =%& "#### ""############## | | ?????????? R R " # =#### "" #### # # # | | ??????????? ## "" #### ##### " | | ???????????? ##""##### ## # "### = | | ?????????????## "#### " ""## [ # #### | | ???????????????????## # ""# ### ###### | | ???????????????????### ###### # ######### ## | | ???????????????????## "###### ""######### ## | | ??????????????????????????## ####????### # | | ??????????????????????????## #######?## ## | | ??????????????????????????### ########## ### | | ??????????????????????????#### # ###### ### | | ?????????????????????"" " # ### ## | | ???????????????????? " " [ ## ## | | ??????????????????? " " # ### ### | | ???????????????????## " " ######### ### | | ???????????????????### " ########### ###? | | ????????????????????###########???## ###########? | | ????????????????????#######???????##############?? | | ??????????????????????????????????#####??????????? | | ?????????????????????????????????????????????????? | | ?????????????????????????????????????????????????? | | ?????????????????????????????????????????????????? | | ?????????????????????????????????????????????????? | +----------------------------------------------------+ Best States ------------- Heat Dissipation 25 Energy Generation 10 Energy Capacity 250 Matter Stores 300 Matter Capacity 300 Sight Range 16 Terrain Scan Density 10 Resistance: KI 20 Resistance: TH 20 Resistance: EX 20 Resistance: EM 20 Resistance: I 20 Resistance: S 20 Resistance: P 20 Evasion (%) 55 Recoil Reduction 2 Offensive Hacking 10 Item Schematics ----------------- None Robot Schematics ------------------ M-13 Machinist | -10/Materials | Hacked Fabricated ------------ Nothing Alien Tech Used ----------------- None Achievements -------------- None Challenges ------------ None Game ------ Seed MatterActuatorWand Manual? 0 Play Time 00:29:28 Cumulative 301.7 hours Start 2024.08.23 @ 00:52:31 End 2024.08.23 @ 01:27:03 Sessions 1 Manual Loads 0 Difficulty Adventurer Special Mode None Game No. 230 Rogue 63 Adventurer 141 Explorer 26 Win Type - Total 1 Types 1/0/0/0/0/0/0/0/0 Lore% 75 Gallery% 72 Achievement% 68 Wizard Run 0 Options --------- Layout 2 ASCII 0 Keyboard 0 Movement Mouse Keybinds 0 Fullscreen 0 Font 18/CogNarrow Map View 64x51 Zoom Use 0% Tactical HUD 1 Map Filters NONE Filters BRIGHTNESS(115)|SATURATION(100)|LOW_CONTRAST(0,16,30) Steam 1 RUN: 52fa26b8-680f-49fe-8b29-89baa0301329